[Event "Early-Titled-Tuesday-Blitz-April-23-2024"]
[Site "Chess.com"]
[Date "2024.04.23"]
[Round "1"]
[White "MIss_MIaMI"]
[Black "Smoking_Crow"]
[Result "0-1"]
[WhiteElo "2357"]
[BlackElo "2663"]
[TimeControl "180+1"]
[EndTime "8:07:31 PDT"]
[Termination "Smoking_Crow won by checkmate"]

1. e4 {[%clk 0:03:00]} 1... c5 {[%clk 0:02:56.1]} 2. Nf3 {[%clk 0:02:59.8]} 2...
d6 {[%clk 0:02:56.2]} 3. d4 {[%clk 0:03:00.4]} 3... cxd4 {[%clk 0:02:57]} 4. c3
{[%clk 0:03:01.1]} 4... dxc3 {[%clk 0:02:56.2]} 5. Nxc3 {[%clk 0:03:02]} 5...
Nc6 {[%clk 0:02:55.7]} 6. Bc4 {[%clk 0:03:02.6]} 6... e6 {[%clk 0:02:48.3]} 7.
O-O {[%clk 0:03:00.1]} 7... Nge7 {[%clk 0:02:47.9]} 8. Bf4 {[%clk 0:02:59.6]}
8... Ng6 {[%clk 0:02:47.4]} 9. Bg3 {[%clk 0:02:59.3]} 9... a6 {[%clk 0:02:46.6]}
10. Qe2 {[%clk 0:02:58.6]} 10... Be7 {[%clk 0:02:43.8]} 11. Rfd1 {[%clk
0:02:57.7]} 11... e5 {[%clk 0:02:41.2]} 12. h4 {[%clk 0:02:43]} 12... Bg4 {[%clk
0:02:39.8]} 13. Nd5 {[%clk 0:02:24.9]} 13... Nd4 {[%clk 0:02:31]} 14. Rxd4
{[%clk 0:02:18.3]} 14... exd4 {[%clk 0:02:29]} 15. Qd3 {[%clk 0:02:08.5]} 15...
Bxf3 {[%clk 0:02:26.8]} 16. Qxf3 {[%clk 0:02:05]} 16... O-O {[%clk 0:02:23.8]}
17. h5 {[%clk 0:01:45.2]} 17... Ne5 {[%clk 0:02:23.2]} 18. Bxe5 {[%clk
0:01:45.7]} 18... dxe5 {[%clk 0:02:24.1]} 19. Qg3 {[%clk 0:01:34.2]} 19... Bf6
{[%clk 0:02:10.7]} 20. Re1 {[%clk 0:01:17.8]} 20... h6 {[%clk 0:02:07.2]} 21.
Bb3 {[%clk 0:01:10.6]} 21... Re8 {[%clk 0:02:05.8]} 22. Nb4 {[%clk 0:01:01.2]}
22... Bg5 {[%clk 0:01:57.9]} 23. Nd3 {[%clk 0:00:57.5]} 23... Qf6 {[%clk
0:01:55.2]} 24. Bd5 {[%clk 0:00:50.9]} 24... Rac8 {[%clk 0:01:52.8]} 25. Bxb7
{[%clk 0:00:47.1]} 25... Rc2 {[%clk 0:01:52.5]} 26. Bd5 {[%clk 0:00:37.4]} 26...
Rec8 {[%clk 0:01:48.7]} 27. Bb3 {[%clk 0:00:26.8]} 27... Rd2 {[%clk 0:01:43.4]}
28. Rf1 {[%clk 0:00:22.5]} 28... Bf4 {[%clk 0:01:42.4]} 29. Qg4 {[%clk
0:00:21.8]} 29... Rd8 {[%clk 0:01:35.6]} 30. Nb4 {[%clk 0:00:18.5]} 30... Rxb2
{[%clk 0:01:31.6]} 31. Nd5 {[%clk 0:00:18.3]} 31... Qg5 {[%clk 0:01:31.1]} 32.
Qh3 {[%clk 0:00:17]} 32... Kh8 {[%clk 0:01:28.7]} 33. Qd3 {[%clk 0:00:12]} 33...
Rc8 {[%clk 0:01:27.8]} 34. g3 {[%clk 0:00:12]} 34... a5 {[%clk 0:01:26.3]} 35.
Qf3 {[%clk 0:00:08]} 35... Ra8 {[%clk 0:01:22.3]} 36. Ba4 {[%clk 0:00:07.5]}
36... Rxa2 {[%clk 0:01:20.8]} 37. Bc6 {[%clk 0:00:08.2]} 37... Rc8 {[%clk
0:01:20]} 38. Bb7 {[%clk 0:00:08.8]} 38... Rb8 {[%clk 0:01:20]} 39. Bc6 {[%clk
0:00:09.3]} 39... Rc2 {[%clk 0:01:18.8]} 40. Ba4 {[%clk 0:00:09.8]} 40... Ra2
{[%clk 0:01:18.2]} 41. Bc6 {[%clk 0:00:10.3]} 41... a4 {[%clk 0:01:13.2]} 42.
Nxf4 {[%clk 0:00:10.2]} 42... exf4 {[%clk 0:01:12.7]} 43. Qxf4 {[%clk
0:00:10.9]} 43... Qxf4 {[%clk 0:01:12.8]} 44. gxf4 {[%clk 0:00:11.8]} 44... d3
{[%clk 0:01:12.9]} 45. Bd5 {[%clk 0:00:10.9]} 45... Rab2 {[%clk 0:01:12.3]} 46.
Rd1 {[%clk 0:00:11.2]} 46... d2 {[%clk 0:01:12.3]} 47. Bxf7 {[%clk 0:00:10.1]}
47... a3 {[%clk 0:01:12.6]} 48. Kf1 {[%clk 0:00:09.4]} 48... a2 {[%clk 0:01:12]}
49. Bxa2 {[%clk 0:00:10.1]} 49... Rxa2 {[%clk 0:01:12.1]} 50. Ke2 {[%clk
0:00:11]} 50... Rb4 {[%clk 0:01:11.6]} 51. f3 {[%clk 0:00:10.9]} 51... Rb3
{[%clk 0:01:10.4]} 52. f5 {[%clk 0:00:08.8]} 52... Kg8 {[%clk 0:01:10.1]} 53. e5
{[%clk 0:00:08.2]} 53... Kf7 {[%clk 0:01:10.4]} 54. f4 {[%clk 0:00:08.7]} 54...
Rc3 {[%clk 0:01:09.8]} 55. Rxd2 {[%clk 0:00:08.9]} 55... Rxd2+ {[%clk
0:01:10.7]} 56. Kxd2 {[%clk 0:00:09.8]} 56... Rh3 {[%clk 0:01:11]} 57. Ke2
{[%clk 0:00:10]} 57... Rxh5 {[%clk 0:01:11.2]} 58. Ke3 {[%clk 0:00:10.9]} 58...
Rxf5 {[%clk 0:01:10.9]} 59. Ke4 {[%clk 0:00:11.8]} 59... Ke6 {[%clk 0:01:11.7]}
60. Kf3 {[%clk 0:00:11.3]} 60... g6 {[%clk 0:01:12.6]} 61. Ke3 {[%clk
0:00:11.5]} 61... h5 {[%clk 0:01:13.5]} 62. Ke4 {[%clk 0:00:11.3]} 62... h4
{[%clk 0:01:13.6]} 63. Kf3 {[%clk 0:00:11.3]} 63... g5 {[%clk 0:01:14.2]} 64.
Kg4 {[%clk 0:00:11.6]} 64... Rxf4+ {[%clk 0:01:15.1]} 65. Kxg5 {[%clk
0:00:12.3]} 65... h3 {[%clk 0:01:15.3]} 66. Kxf4 {[%clk 0:00:12.9]} 66... h2
{[%clk 0:01:16.2]} 67. Kg3 {[%clk 0:00:13.1]} 67... h1=Q {[%clk 0:01:15.9]} 68.
Kf2 {[%clk 0:00:14]} 68... Qh3 {[%clk 0:01:16]} 69. Kg1 {[%clk 0:00:14.2]} 69...
Qf3 {[%clk 0:01:14.5]} 70. Kh2 {[%clk 0:00:14.5]} 70... Qg4 {[%clk 0:01:15.1]}
71. Kh1 {[%clk 0:00:14.7]} 71... Kxe5 {[%clk 0:01:16]} 72. Kh2 {[%clk
0:00:15.6]} 72... Ke4 {[%clk 0:01:16.9]} 73. Kh1 {[%clk 0:00:16.2]} 73... Kf3
{[%clk 0:01:17.8]} 74. Kh2 {[%clk 0:00:17.1]} 74... Qg2# {[%clk 0:01:18.7]} 0-1

[Event "Early-Titled-Tuesday-Blitz-April-23-2024"]
[Site "Chess.com"]
[Date "2024.04.23"]
[Round "1"]
[White "GMAneta"]
[Black "starworld123"]
[Result "0-1"]
[WhiteElo "2489"]
[BlackElo "2866"]
[TimeControl "180+1"]
[EndTime "8:07:34 PDT"]
[Termination "starworld123 won by resignation"]

1. Nf3 {[%clk 0:02:59.1]} 1... d5 {[%clk 0:02:54]} 2. d4 {[%clk 0:02:57.6]} 2...
Nf6 {[%clk 0:02:54]} 3. c4 {[%clk 0:02:58.3]} 3... c6 {[%clk 0:02:52.1]} 4. Nc3
{[%clk 0:02:57.8]} 4... g6 {[%clk 0:02:48.8]} 5. Bf4 {[%clk 0:02:56.8]} 5... Bg7
{[%clk 0:02:47.9]} 6. e3 {[%clk 0:02:56.9]} 6... O-O {[%clk 0:02:47.5]} 7. Qb3
{[%clk 0:02:56.8]} 7... b6 {[%clk 0:02:42.2]} 8. Rc1 {[%clk 0:02:53.7]} 8... Bb7
{[%clk 0:02:41.6]} 9. h3 {[%clk 0:02:50.8]} 9... e6 {[%clk 0:02:39.9]} 10. Be2
{[%clk 0:02:49.2]} 10... Nbd7 {[%clk 0:02:39.6]} 11. O-O {[%clk 0:02:48.6]}
11... Re8 {[%clk 0:02:38.5]} 12. Rfd1 {[%clk 0:02:48.3]} 12... Qe7 {[%clk
0:02:36.4]} 13. a4 {[%clk 0:02:44.4]} 13... a5 {[%clk 0:02:32.4]} 14. c5 {[%clk
0:02:41.2]} 14... Qd8 {[%clk 0:02:22.9]} 15. Nb1 {[%clk 0:02:07.7]} 15... Ba6
{[%clk 0:02:16.7]} 16. Bxa6 {[%clk 0:01:56.3]} 16... Rxa6 {[%clk 0:02:17.6]} 17.
cxb6 {[%clk 0:01:56.3]} 17... Rxb6 {[%clk 0:02:18.5]} 18. Qc2 {[%clk 0:01:56.3]}
18... Qa8 {[%clk 0:02:07.7]} 19. Nbd2 {[%clk 0:01:55.4]} 19... Rc8 {[%clk
0:02:03.1]} 20. Nb3 {[%clk 0:01:54.7]} 20... Ne4 {[%clk 0:02:00.8]} 21. Nfd2
{[%clk 0:01:51.7]} 21... Nxd2 {[%clk 0:02:00.3]} 22. Rxd2 {[%clk 0:01:51.6]}
22... Rb4 {[%clk 0:01:54.3]} 23. Ra1 {[%clk 0:01:44.1]} 23... c5 {[%clk
0:01:44.2]} 24. Nxc5 {[%clk 0:01:36.5]} 24... Nxc5 {[%clk 0:01:44.6]} 25. dxc5
{[%clk 0:01:37.4]} 25... Rxb2 {[%clk 0:01:45.1]} 26. Qxb2 {[%clk 0:01:34.3]}
26... Bxb2 {[%clk 0:01:46]} 27. Rxb2 {[%clk 0:01:35]} 27... Qa6 {[%clk
0:01:32.1]} 28. Be5 {[%clk 0:01:24.3]} 28... Qc4 {[%clk 0:01:21.4]} 29. Rb5
{[%clk 0:01:19.8]} 29... Rxc5 {[%clk 0:01:18.5]} 30. Rb8+ {[%clk 0:01:18.3]}
30... Rc8 {[%clk 0:01:19.1]} 31. Rab1 {[%clk 0:01:17.6]} 31... Rf8 {[%clk
0:01:02.4]} 32. Bf6 {[%clk 0:01:02.3]} 32... Qc7 {[%clk 0:00:51.4]} 33. Rxf8+
{[%clk 0:01:01]} 33... Kxf8 {[%clk 0:00:52.3]} 34. f4 {[%clk 0:01:00.3]} 34...
Ke8 {[%clk 0:00:48.7]} 35. Kh2 {[%clk 0:00:57.7]} 35... h6 {[%clk 0:00:46.1]}
36. h4 {[%clk 0:00:57.2]} 36... Kd7 {[%clk 0:00:41.9]} 37. Be5 {[%clk
0:00:51.9]} 37... Qc6 {[%clk 0:00:37.3]} 38. Rb5 {[%clk 0:00:51]} 38... g5
{[%clk 0:00:31.3]} 39. fxg5 {[%clk 0:00:39.9]} 39... hxg5 {[%clk 0:00:32.2]} 40.
h5 {[%clk 0:00:40.3]} 40... d4 {[%clk 0:00:27.5]} 41. exd4 {[%clk 0:00:37.1]}
41... Qc2 {[%clk 0:00:27.2]} 42. Rxa5 {[%clk 0:00:33.8]} 42... Qh7 {[%clk
0:00:25]} 43. g4 {[%clk 0:00:32.2]} 43... Qc2+ {[%clk 0:00:24.6]} 44. Kh3 {[%clk
0:00:32.2]} 44... Qc3+ {[%clk 0:00:24.7]} 45. Kg2 {[%clk 0:00:31.5]} 45... Qxa5
{[%clk 0:00:25.6]} 46. h6 {[%clk 0:00:31.9]} 46... Qxa4 {[%clk 0:00:25.8]} 47.
Kg3 {[%clk 0:00:30.6]} 47... Qc2 {[%clk 0:00:26.7]} 48. Bg7 {[%clk 0:00:29.5]}
48... Qd3+ {[%clk 0:00:27.6]} 49. Kf2 {[%clk 0:00:29.3]} 49... Kc6 {[%clk
0:00:28.4]} 50. Kg2 {[%clk 0:00:29.3]} 50... Kd5 {[%clk 0:00:29]} 51. Kf2 {[%clk
0:00:30.1]} 51... Qg6 {[%clk 0:00:26.4]} 52. Kg2 {[%clk 0:00:31]} 52... Ke4
{[%clk 0:00:26.4]} 53. Kf2 {[%clk 0:00:30.6]} 53... f5 {[%clk 0:00:27.1]} 54.
gxf5 {[%clk 0:00:29.5]} 54... exf5 {[%clk 0:00:28]} 55. Ke2 {[%clk 0:00:29.7]}
55... f4 {[%clk 0:00:28.4]} 56. Kf2 {[%clk 0:00:29.7]} 56... g4 {[%clk
0:00:29.1]} 0-1

[Event "Early-Titled-Tuesday-Blitz-April-23-2024"]
[Site "Chess.com"]
[Date "2024.04.23"]
[Round "1"]
[White "HZMC92"]
[Black "GalaxyRoman"]
[Result "1-0"]
[WhiteElo "2494"]
[BlackElo "2789"]
[TimeControl "180+1"]
[EndTime "8:07:35 PDT"]
[Termination "HZMC92 won by checkmate"]

1. d4 {[%clk 0:03:00.9]} 1... Nf6 {[%clk 0:02:59.7]} 2. c4 {[%clk 0:02:56.8]}
2... e6 {[%clk 0:02:56.6]} 3. Nf3 {[%clk 0:02:56.2]} 3... b6 {[%clk 0:02:56.5]}
4. a3 {[%clk 0:02:56.2]} 4... Bb7 {[%clk 0:02:52.3]} 5. Nc3 {[%clk 0:02:56.2]}
5... Be7 {[%clk 0:02:48.5]} 6. Bg5 {[%clk 0:02:56.2]} 6... O-O {[%clk
0:02:47.9]} 7. Qc2 {[%clk 0:02:56]} 7... d6 {[%clk 0:02:47.6]} 8. e3 {[%clk
0:02:53.7]} 8... Nbd7 {[%clk 0:02:47.2]} 9. Be2 {[%clk 0:02:53.4]} 9... h6
{[%clk 0:02:47.3]} 10. Bh4 {[%clk 0:02:53.3]} 10... Re8 {[%clk 0:02:46.7]} 11.
O-O {[%clk 0:02:53.1]} 11... a6 {[%clk 0:02:43.4]} 12. Rfd1 {[%clk 0:02:50.2]}
12... Nf8 {[%clk 0:02:36.6]} 13. b4 {[%clk 0:02:47.9]} 13... Ng6 {[%clk
0:02:35.5]} 14. Bg3 {[%clk 0:02:48.1]} 14... Nh5 {[%clk 0:02:31.3]} 15. c5
{[%clk 0:02:36.8]} 15... Nxg3 {[%clk 0:02:29.7]} 16. hxg3 {[%clk 0:02:35.3]}
16... Qc8 {[%clk 0:02:11.5]} 17. Na4 {[%clk 0:02:21.1]} 17... b5 {[%clk
0:01:50.7]} 18. Nc3 {[%clk 0:02:19.2]} 18... Bc6 {[%clk 0:01:44.9]} 19. d5
{[%clk 0:02:10.3]} 19... exd5 {[%clk 0:01:43.2]} 20. Nxd5 {[%clk 0:02:11.2]}
20... Bxd5 {[%clk 0:01:43]} 21. Rxd5 {[%clk 0:02:12.1]} 21... dxc5 {[%clk
0:01:42.9]} 22. bxc5 {[%clk 0:02:04.1]} 22... Qe6 {[%clk 0:01:37.2]} 23. Rad1
{[%clk 0:01:57.2]} 23... Rad8 {[%clk 0:01:37]} 24. Rxd8 {[%clk 0:01:56.9]} 24...
Rxd8 {[%clk 0:01:37.2]} 25. Rxd8+ {[%clk 0:01:56.7]} 25... Bxd8 {[%clk
0:01:38.1]} 26. Nd4 {[%clk 0:01:51.8]} 26... Qd7 {[%clk 0:01:28]} 27. a4 {[%clk
0:01:41.1]} 27... bxa4 {[%clk 0:01:22.2]} 28. Bxa6 {[%clk 0:01:39.2]} 28... Bf6
{[%clk 0:01:22.1]} 29. Bb5 {[%clk 0:01:38.4]} 29... Qd5 {[%clk 0:01:21]} 30. Bc4
{[%clk 0:01:26.1]} 30... Qh5 {[%clk 0:00:50.5]} 31. Qxa4 {[%clk 0:01:18.5]}
31... Ne5 {[%clk 0:00:46.3]} 32. Be2 {[%clk 0:01:08.8]} 32... Qg6 {[%clk
0:00:45.7]} 33. Qb3 {[%clk 0:00:57.8]} 33... Kh7 {[%clk 0:00:14.5]} 34. Bd1
{[%clk 0:00:54.9]} 34... Kg8 {[%clk 0:00:02]} 35. Qb8+ {[%clk 0:00:45.8]} 35...
Kh7 {[%clk 0:00:02]} 36. Bc2 {[%clk 0:00:45.3]} 36... Nd3 {[%clk 0:00:02.5]} 37.
Qb3 {[%clk 0:00:37.9]} 37... Bxd4 {[%clk 0:00:02]} 38. Bxd3 {[%clk 0:00:32.1]}
38... f5 {[%clk 0:00:01.9]} 39. exd4 {[%clk 0:00:32.4]} 39... Qf6 {[%clk
0:00:02.8]} 40. Qd5 {[%clk 0:00:28.1]} 40... g6 {[%clk 0:00:03.4]} 41. Qe5
{[%clk 0:00:28.1]} 41... Qd8 {[%clk 0:00:02.8]} 42. Bc4 {[%clk 0:00:26.1]} 42...
h5 {[%clk 0:00:02.1]} 43. d5 {[%clk 0:00:25.6]} 43... Qg5 {[%clk 0:00:02.6]} 44.
d6 {[%clk 0:00:20.4]} 44... cxd6 {[%clk 0:00:02.6]} 45. cxd6 {[%clk 0:00:20.3]}
45... Qc1+ {[%clk 0:00:03.2]} 46. Bf1 {[%clk 0:00:20.9]} 46... Qd2 {[%clk
0:00:03.8]} 47. Qe7+ {[%clk 0:00:20.3]} 47... Kh6 {[%clk 0:00:04.3]} 48. d7
{[%clk 0:00:21]} 48... f4 {[%clk 0:00:05.1]} 49. d8=Q {[%clk 0:00:21]} 49... Qc1
{[%clk 0:00:04.3]} 50. Qh8# {[%clk 0:00:20.9]} 1-0

[Event "Early-Titled-Tuesday-Blitz-April-23-2024"]
[Site "Chess.com"]
[Date "2024.04.23"]
[Round "1"]
[White "PonyQueen07"]
[Black "koncheto"]
[Result "0-1"]
[WhiteElo "2198"]
[BlackElo "2607"]
[TimeControl "180+1"]
[EndTime "8:07:36 PDT"]
[Termination "koncheto won by checkmate"]

1. c4 {[%clk 0:03:00.9]} 1... Nf6 {[%clk 0:02:57.5]} 2. Nc3 {[%clk 0:03:00.4]}
2... e6 {[%clk 0:02:57.6]} 3. e4 {[%clk 0:02:59.5]} 3... d5 {[%clk 0:02:57.9]}
4. e5 {[%clk 0:03:00]} 4... d4 {[%clk 0:02:57.5]} 5. exf6 {[%clk 0:03:00.4]}
5... dxc3 {[%clk 0:02:58]} 6. bxc3 {[%clk 0:02:57.2]} 6... Qxf6 {[%clk
0:02:58.3]} 7. Nf3 {[%clk 0:02:57.6]} 7... h6 {[%clk 0:02:57.1]} 8. d4 {[%clk
0:02:55.3]} 8... b6 {[%clk 0:02:57.5]} 9. Be2 {[%clk 0:02:47.8]} 9... Bb7 {[%clk
0:02:56.9]} 10. O-O {[%clk 0:02:47.8]} 10... Qd8 {[%clk 0:02:55.3]} 11. Bf4
{[%clk 0:02:43.4]} 11... Bd6 {[%clk 0:02:54.8]} 12. Bxd6 {[%clk 0:02:41.2]}
12... Qxd6 {[%clk 0:02:55.7]} 13. Rb1 {[%clk 0:02:37.6]} 13... c5 {[%clk
0:02:50.6]} 14. Ne5 {[%clk 0:02:27.8]} 14... O-O {[%clk 0:02:46]} 15. Bf3 {[%clk
0:02:18.3]} 15... Nc6 {[%clk 0:02:24.3]} 16. Nxc6 {[%clk 0:02:14.1]} 16... Bxc6
{[%clk 0:02:23.8]} 17. Bxc6 {[%clk 0:02:13.6]} 17... Qxc6 {[%clk 0:02:23.9]} 18.
d5 {[%clk 0:02:13.3]} 18... Qd7 {[%clk 0:02:18.5]} 19. Qf3 {[%clk 0:02:10.5]}
19... exd5 {[%clk 0:02:05.9]} 20. cxd5 {[%clk 0:02:09.6]} 20... Qa4 {[%clk
0:02:03.1]} 21. Rb2 {[%clk 0:01:53.6]} 21... Rad8 {[%clk 0:01:58.1]} 22. Rd2
{[%clk 0:01:49.8]} 22... Rd6 {[%clk 0:01:56.8]} 23. h3 {[%clk 0:01:47.7]} 23...
Re8 {[%clk 0:01:49.3]} 24. Rfd1 {[%clk 0:01:38.9]} 24... Re5 {[%clk 0:01:47]}
25. Qg3 {[%clk 0:01:34.4]} 25... Qe4 {[%clk 0:01:46.2]} 26. f3 {[%clk
0:01:25.9]} 26... Qe3+ {[%clk 0:01:45.3]} 27. Qf2 {[%clk 0:01:25.6]} 27... Qxc3
{[%clk 0:01:38.2]} 28. Kh2 {[%clk 0:01:05.9]} 28... Qc4 {[%clk 0:01:27.2]} 29.
Qg3 {[%clk 0:00:48]} 29... Rdxd5 {[%clk 0:01:17.4]} 30. Rxd5 {[%clk 0:00:43.7]}
30... Rxd5 {[%clk 0:01:18.3]} 31. Qb8+ {[%clk 0:00:42.6]} 31... Kh7 {[%clk
0:01:16.2]} 32. Rxd5 {[%clk 0:00:41.5]} 32... Qxd5 {[%clk 0:01:16.1]} 33. Qxa7
{[%clk 0:00:39]} 33... b5 {[%clk 0:01:14.1]} 34. Qa3 {[%clk 0:00:33.8]} 34... c4
{[%clk 0:01:02.6]} 35. Qb4 {[%clk 0:00:26.1]} 35... Qe5+ {[%clk 0:00:56.2]} 36.
Kg1 {[%clk 0:00:24.9]} 36... c3 {[%clk 0:00:56.5]} 37. Qb1+ {[%clk 0:00:22.2]}
37... g6 {[%clk 0:00:54.8]} 38. Qc2 {[%clk 0:00:21.4]} 38... Qe1+ {[%clk
0:00:47.7]} 39. Kh2 {[%clk 0:00:21]} 39... Qd2 {[%clk 0:00:44.6]} 40. Qb3 {[%clk
0:00:19.3]} 40... Kg8 {[%clk 0:00:31.4]} 41. Qxb5 {[%clk 0:00:11.7]} 41... Qf4+
{[%clk 0:00:20.9]} 42. Kg1 {[%clk 0:00:10.7]} 42... c2 {[%clk 0:00:14.6]} 43.
Qb8+ {[%clk 0:00:05.4]} 43... Qxb8 {[%clk 0:00:10.4]} 44. a4 {[%clk 0:00:03.9]}
44... c1=Q+ {[%clk 0:00:11.3]} 45. Kf2 {[%clk 0:00:04.4]} 45... Qbf4 {[%clk
0:00:10.3]} 46. Ke2 {[%clk 0:00:04.5]} 46... Qfe3# {[%clk 0:00:08.5]} 0-1

[Event "Early-Titled-Tuesday-Blitz-April-23-2024"]
[Site "Chess.com"]
[Date "2024.04.23"]
[Round "1"]
[White "kekic76"]
[Black "tusplingher"]
[Result "0-1"]
[WhiteElo "2334"]
[BlackElo "2649"]
[TimeControl "180+1"]
[EndTime "8:07:37 PDT"]
[Termination "tusplingher won by resignation"]

1. c4 {[%clk 0:02:59.8]} 1... e5 {[%clk 0:02:59.4]} 2. Nc3 {[%clk 0:02:59.5]}
2... Nf6 {[%clk 0:02:58.2]} 3. d3 {[%clk 0:03:00.1]} 3... Nc6 {[%clk 0:02:56.6]}
4. Nf3 {[%clk 0:03:00.7]} 4... d5 {[%clk 0:02:56.3]} 5. cxd5 {[%clk 0:03:00.5]}
5... Nxd5 {[%clk 0:02:56.7]} 6. Bd2 {[%clk 0:03:01.1]} 6... Be7 {[%clk
0:02:52.6]} 7. g3 {[%clk 0:03:00.1]} 7... Be6 {[%clk 0:02:51.9]} 8. Bg2 {[%clk
0:03:00.7]} 8... O-O {[%clk 0:02:50.7]} 9. O-O {[%clk 0:03:01]} 9... f6 {[%clk
0:02:49.3]} 10. a3 {[%clk 0:02:58.5]} 10... a5 {[%clk 0:02:47.2]} 11. Rc1 {[%clk
0:02:54.9]} 11... Nxc3 {[%clk 0:02:37.1]} 12. Bxc3 {[%clk 0:02:53.4]} 12... Bd5
{[%clk 0:02:36]} 13. h4 {[%clk 0:02:40.5]} 13... Nd4 {[%clk 0:02:04.3]} 14. Bxd4
{[%clk 0:01:44.7]} 14... exd4 {[%clk 0:02:03.1]} 15. Qc2 {[%clk 0:01:45.1]}
15... c5 {[%clk 0:01:58.4]} 16. Nd2 {[%clk 0:01:42.5]} 16... Bxg2 {[%clk
0:01:58.3]} 17. Kxg2 {[%clk 0:01:42.9]} 17... a4 {[%clk 0:01:51.2]} 18. Qc4+
{[%clk 0:01:41.9]} 18... Kh8 {[%clk 0:01:51.3]} 19. Ne4 {[%clk 0:01:41.6]} 19...
b6 {[%clk 0:01:47.6]} 20. b3 {[%clk 0:01:17]} 20... axb3 {[%clk 0:01:41.1]} 21.
Qxb3 {[%clk 0:01:17.9]} 21... f5 {[%clk 0:01:40.5]} 22. Nd2 {[%clk 0:01:15.5]}
22... Rf6 {[%clk 0:01:18.8]} 23. Nf3 {[%clk 0:01:04.1]} 23... Qc7 {[%clk
0:01:06.6]} 24. Ng5 {[%clk 0:00:56.6]} 24... Raf8 {[%clk 0:01:02.5]} 25. f3
{[%clk 0:00:52.5]} 25... Qc6 {[%clk 0:00:58.5]} 26. Rb1 {[%clk 0:00:35.1]} 26...
h6 {[%clk 0:00:55.6]} 27. Nh3 {[%clk 0:00:35.2]} 27... Re6 {[%clk 0:00:33.6]}
28. Nf4 {[%clk 0:00:33.2]} 28... Ref6 {[%clk 0:00:32.3]} 29. Nd5 {[%clk
0:00:31.3]} 29... Re6 {[%clk 0:00:28.8]} 30. Nf4 {[%clk 0:00:30.6]} 30... Rd6
{[%clk 0:00:23.2]} 31. Rfe1 {[%clk 0:00:19.1]} 31... Bd8 {[%clk 0:00:20.6]} 32.
Qb5 {[%clk 0:00:17]} 32... Qc8 {[%clk 0:00:17.5]} 33. Qc4 {[%clk 0:00:11.9]}
33... Kh7 {[%clk 0:00:16.1]} 34. a4 {[%clk 0:00:10]} 34... Bf6 {[%clk
0:00:15.7]} 35. Nd5 {[%clk 0:00:09.4]} 35... Qe6 {[%clk 0:00:13.8]} 36. Nxf6+
{[%clk 0:00:09.1]} 36... Qxf6 {[%clk 0:00:14.4]} 37. Rb5 {[%clk 0:00:07.4]}
37... Re8 {[%clk 0:00:14.6]} 38. Qc2 {[%clk 0:00:06.6]} 38... Rde6 {[%clk
0:00:14.4]} 39. Kf2 {[%clk 0:00:06.7]} 39... Qe5 {[%clk 0:00:14.3]} 40. Kf1
{[%clk 0:00:04.5]} 40... Qxg3 {[%clk 0:00:13.9]} 41. Rb2 {[%clk 0:00:03.6]}
41... Qh3+ {[%clk 0:00:14]} 42. Kg1 {[%clk 0:00:03.2]} 42... Qxh4 {[%clk
0:00:14.4]} 43. Qd2 {[%clk 0:00:03.4]} 43... Qg3+ {[%clk 0:00:14.5]} 44. Kf1
{[%clk 0:00:03.7]} 44... Rg6 {[%clk 0:00:15.2]} 0-1

[Event "Early-Titled-Tuesday-Blitz-April-23-2024"]
[Site "Chess.com"]
[Date "2024.04.23"]
[Round "1"]
[White "ViktoriyaTarasova"]
[Black "MatyChess1"]
[Result "0-1"]
[WhiteElo "2367"]
[BlackElo "2675"]
[TimeControl "180+1"]
[EndTime "8:07:38 PDT"]
[Termination "MatyChess1 won on time"]

1. d4 {[%clk 0:03:00.9]} 1... d5 {[%clk 0:02:59.5]} 2. c4 {[%clk 0:02:59.8]}
2... c6 {[%clk 0:02:58.7]} 3. Nf3 {[%clk 0:02:57.4]} 3... Nf6 {[%clk 0:02:57.9]}
4. Nc3 {[%clk 0:02:55.4]} 4... e6 {[%clk 0:02:57.1]} 5. Bg5 {[%clk 0:02:54.6]}
5... Nbd7 {[%clk 0:02:56.7]} 6. e3 {[%clk 0:02:52.1]} 6... Be7 {[%clk
0:02:56.7]} 7. Qc2 {[%clk 0:02:49.2]} 7... O-O {[%clk 0:02:56.5]} 8. Bd3 {[%clk
0:02:48.5]} 8... h6 {[%clk 0:02:55.5]} 9. Bh4 {[%clk 0:02:47.9]} 9... a6 {[%clk
0:02:53.2]} 10. a4 {[%clk 0:02:40.8]} 10... b6 {[%clk 0:02:41.9]} 11. O-O {[%clk
0:02:39.5]} 11... Bb7 {[%clk 0:02:41.8]} 12. e4 {[%clk 0:02:16.9]} 12... Nxe4
{[%clk 0:02:31.7]} 13. Bxe7 {[%clk 0:02:15.6]} 13... Qxe7 {[%clk 0:02:32.6]} 14.
Nxe4 {[%clk 0:02:14]} 14... dxe4 {[%clk 0:02:33.1]} 15. Bxe4 {[%clk 0:02:14.7]}
15... Nf6 {[%clk 0:02:33.7]} 16. a5 {[%clk 0:01:37.3]} 16... Nxe4 {[%clk
0:02:24.8]} 17. Qxe4 {[%clk 0:01:36.6]} 17... c5 {[%clk 0:02:25]} 18. Qe3 {[%clk
0:00:52.1]} 18... Bxf3 {[%clk 0:02:16.7]} 19. Qxf3 {[%clk 0:00:52.2]} 19... bxa5
{[%clk 0:02:15.7]} 20. d5 {[%clk 0:00:33.4]} 20... exd5 {[%clk 0:02:13.1]} 21.
cxd5 {[%clk 0:00:31.8]} 21... Qc7 {[%clk 0:02:07.7]} 22. Qc3 {[%clk 0:00:30.2]}
22... Rfd8 {[%clk 0:01:48.5]} 23. Rfd1 {[%clk 0:00:30]} 23... Rab8 {[%clk
0:01:48.3]} 24. Rxa5 {[%clk 0:00:29]} 24... Rb5 {[%clk 0:01:48.2]} 25. Rxa6
{[%clk 0:00:25.9]} 25... Qb7 {[%clk 0:01:44.9]} 26. Ra5 {[%clk 0:00:12.4]} 26...
Rxd5 {[%clk 0:01:33.9]} 27. Re1 {[%clk 0:00:08.2]} 27... Rxa5 {[%clk 0:01:29.1]}
28. Qxa5 {[%clk 0:00:08.2]} 28... Kh7 {[%clk 0:00:51.5]} 29. Qc3 {[%clk
0:00:05.8]} 29... Qb4 {[%clk 0:00:43.8]} 30. Qc2+ {[%clk 0:00:06.2]} 30... g6
{[%clk 0:00:40.8]} 31. Rc1 {[%clk 0:00:04.5]} 31... Rd2 {[%clk 0:00:33.4]} 32.
Qc3 {[%clk 0:00:04.8]} 32... Rxb2 {[%clk 0:00:16.4]} 33. Qf6 {[%clk 0:00:04.8]}
33... Qb3 {[%clk 0:00:08.7]} 34. h3 {[%clk 0:00:05.2]} 34... Rb1 {[%clk
0:00:08.9]} 35. Rxb1 {[%clk 0:00:05.1]} 35... Qxb1+ {[%clk 0:00:09.8]} 36. Kh2
{[%clk 0:00:05.4]} 36... Qb3 {[%clk 0:00:10.2]} 37. Qe7 {[%clk 0:00:05.2]} 37...
Qd5 {[%clk 0:00:09.6]} 38. Qc7 {[%clk 0:00:03.7]} 38... h5 {[%clk 0:00:09.8]}
39. h4 {[%clk 0:00:03.8]} 39... Kg7 {[%clk 0:00:10.4]} 40. g3 {[%clk 0:00:04.3]}
40... Qd4 {[%clk 0:00:10.6]} 41. Kg2 {[%clk 0:00:04.5]} 41... c4 {[%clk
0:00:11.1]} 42. Qc8 {[%clk 0:00:04.1]} 42... Qd5+ {[%clk 0:00:11.4]} 43. Kh2
{[%clk 0:00:04.3]} 43... Qd4 {[%clk 0:00:12]} 44. Qh3 {[%clk 0:00:04]} 44...
Qxf2+ {[%clk 0:00:11.8]} 0-1